fUSD/lending_fUSD_20250107
["ID","MTS","AMOUNT","RATE_DAILY","PERIOD"]
[347981454,1736260235639,-925.73,9.969e-05,2]
[347981456,1736260235648,-946.72,9.969e-05,2]
[347981458,1736260235657,-674.46,9.969e-05,2]
[347981460,1736260235666,-500.0,9.969e-05,2]
[347981462,1736260235675,-1283.58,9.969e-05,2]
[347981464,1736260235685,-156.995149,9.969e-05,2]
[347981467,1736260235695,-773.53,9.969e-05,2]
[347981469,1736260235704,-611.2,9.969e-05,2]
[347981470,1736260235714,-863.99,9.969e-05,2]
[347981471,1736260235724,-834.44,9.969e-05,2]
[347981472,1736260235734,-530.36,9.969e-05,2]
[347981473,1736260235743,-500.0,9.969e-05,2]
[347981474,1736260235752,-764.9,9.969e-05,2]
[347981475,1736260235761,-652.57,9.969e-05,2]
[347981476,1736260235770,-932.67,9.969e-05,2]
[347981477,1736260235779,-823.81,9.969e-05,2]
[347981478,1736260235788,-709.88,9.969e-05,2]
[347981479,1736260235797,-1214.87,9.969e-05,2]
[347981480,1736260235811,-510.5,9.969e-05,2]
[347981482,1736260235820,-699.35,9.969e-05,2]
[347981484,1736260235830,-772.7,9.969e-05,2]
[347981486,1736260235839,-607.23,9.969e-05,2]
[347981488,1736260235849,-561.28,9.969e-05,2]
[347981490,1736260235858,-500.0,9.969e-05,2]
[347981492,1736260235868,-1488.4,9.969e-05,2]
[347981494,1736260235878,-697.66,9.969e-05,2]
[347981496,1736260235887,-1083.42,9.969e-05,2]
[347981498,1736260235897,-606.1,9.969e-05,2]
[347981500,1736260235906,-1593.68,9.969e-05,2]
[347981502,1736260235915,-1051.23,9.969e-05,2]
[347981504,1736260235924,-500.0,9.969e-05,2]
[347981506,1736260235933,-500.0,9.969e-05,2]
[347981507,1736260235942,-1186.65,9.969e-05,2]
[347981509,1736260235951,-828.73,9.969e-05,2]
[347981512,1736260235961,-500.0,9.969e-05,2]
[347981514,1736260235970,-2294.73,9.969e-05,2]
[347981516,1736260235980,-500.0,9.969e-05,2]
[347981518,1736260235989,-500.0,9.969e-05,2]
[347981520,1736260235999,-1116.38,9.969e-05,2]
[347981522,1736260236008,-996.63,9.969e-05,2]
[347981524,1736260236018,-2347.57,9.969e-05,2]
[347981526,1736260236027,-825.17,9.969e-05,2]
[347981528,1736260236036,-875.46,9.969e-05,2]
[347981530,1736260236045,-500.0,9.969e-05,2]
[347981532,1736260236057,-749.31,9.969e-05,2]
[347981534,1736260236066,-1282.38,9.969e-05,2]
[347981536,1736260236076,-653.0,9.969e-05,2]
[347981538,1736260236085,-660.98,9.969e-05,2]
[347981540,1736260236094,-1169.11,9.969e-05,2]
[347981565,1736260236320,-500.0,9.969e-05,2]
[347981567,1736260236330,-691.9,9.969e-05,2]
[347981569,1736260236340,-9876.7,9.969e-05,2]
[347981571,1736260236349,-592.17,9.969e-05,2]
[347981573,1736260236359,-500.0,9.969e-05,2]
[347981575,1736260236369,-3772.62,9.969e-05,2]
[347981577,1736260236379,-500.0,9.969e-05,2]
[347981579,1736260236388,-572.85,9.969e-05,2]
[347981581,1736260236398,-757.97,9.969e-05,2]
[347981583,1736260236408,-788.34,9.969e-05,2]
[347981585,1736260236417,-688.07,9.969e-05,2]
[347981587,1736260236427,-3863.15,9.969e-05,2]
[347981589,1736260236436,-500.0,9.969e-05,2]
[347981591,1736260236445,-2412.78,9.969e-05,2]
[347981593,1736260236455,-1544.4,9.969e-05,2]
[347981595,1736260236465,-500.0,9.969e-05,2]
[347981597,1736260236474,-1308.58,9.969e-05,2]
[347981599,1736260236485,-961.83,9.969e-05,2]
[347981602,1736260236494,-1400.61,9.969e-05,2]
[347981604,1736260236504,-5385.81,9.969e-05,2]
[347981606,1736260236513,-500.0,9.969e-05,2]
[347981608,1736260236523,-5207.76,9.969e-05,2]
[347981610,1736260236533,-1928.48,9.969e-05,2]
[347981612,1736260236543,-5967.97,9.969e-05,2]
[347981614,1736260236554,-500.0,9.969e-05,2]
[347981616,1736260236564,-4574.8,9.969e-05,2]
[347981618,1736260236573,-1151.7,9.969e-05,2]
[347981620,1736260236583,-500.0,9.969e-05,2]
[347981622,1736260236594,-500.0,9.969e-05,2]
[347981624,1736260236604,-762.07,9.969e-05,2]
[347981626,1736260236614,-500.0,9.969e-05,2]
[347981628,1736260236624,-633.96,9.969e-05,2]
[347981630,1736260236634,-1266.17,9.969e-05,2]
[347981632,1736260236643,-500.0,9.969e-05,2]
[347981634,1736260236654,-500.0,9.969e-05,2]
[347981636,1736260236663,-615.6,9.969e-05,2]
[347981638,1736260236672,-1560.55,9.969e-05,2]
[347981640,1736260236682,-548.29,9.969e-05,2]
[347981642,1736260236691,-1895.82,9.969e-05,2]
[347981644,1736260236701,-500.0,9.969e-05,2]
[347981646,1736260236710,-1224.27,9.969e-05,2]
[347981648,1736260236719,-550.92,9.969e-05,2]
[347981650,1736260236729,-613.26,9.969e-05,2]
[347981652,1736260236742,-2586.28,9.969e-05,2]
[347981654,1736260236751,-1664.16,9.969e-05,2]
[347981656,1736260236760,-1063.01,9.969e-05,2]
[347981658,1736260236770,-1054.88,9.969e-05,2]
[347981660,1736260236780,-1775.37,9.969e-05,2]
[347981662,1736260236789,-500.0,9.969e-05,2]
[347981664,1736260236798,-500.0,9.969e-05,2]
[347981666,1736260236810,-500.0,9.969e-05,2]
[347981668,1736260236819,-500.0,9.971e-05,2]
[347981670,1736260236830,-500.0,9.971e-05,2]
[347981672,1736260236839,-500.0,9.971e-05,2]
[347981674,1736260236849,-500.0,9.971e-05,2]
[347981676,1736260236858,-500.0,9.971e-05,2]
[347981678,1736260236867,-500.0,9.971e-05,2]
[347981680,1736260236876,-500.0,9.971e-05,2]
[347981682,1736260236885,-500.0,9.971e-05,2]
[347981684,1736260236894,-500.0,9.971e-05,2]
[347981686,1736260236904,-500.0,9.971e-05,2]
[347981688,1736260236913,-500.0,9.971e-05,2]
[347981690,1736260236922,-500.0,9.971e-05,2]
[347981692,1736260236931,-500.0,9.971e-05,2]
[347981694,1736260236941,-500.0,9.971e-05,2]
[347981696,1736260236949,-500.0,9.971e-05,2]
[347981698,1736260236959,-500.0,9.971e-05,2]
[347981700,1736260236968,-500.0,9.971e-05,2]
[347981702,1736260236978,-500.0,9.971e-05,2]
[347981704,1736260236987,-500.0,9.971e-05,2]
[347981706,1736260236996,-500.0,9.971e-05,2]
[347981708,1736260237005,-500.0,9.971e-05,2]
[347981710,1736260237014,-500.0,9.971e-05,2]
[347981712,1736260237023,-500.0,9.971e-05,2]
[347981714,1736260237032,-500.0,9.971e-05,2]
[347981716,1736260237041,-500.0,9.971e-05,2]
[347981718,1736260237050,-500.0,9.971e-05,2]
[347981720,1736260237063,-500.0,9.971e-05,2]
[347981722,1736260237072,-500.0,9.971e-05,2]
[347981724,1736260237082,-500.0,9.971e-05,2]
[347981726,1736260237092,-500.0,9.971e-05,2]
[347981728,1736260237102,-500.0,9.971e-05,2]
[347981730,1736260237111,-500.0,9.971e-05,2]
[347981732,1736260237121,-500.0,9.971e-05,2]
[347981734,1736260237130,-385.37304999,9.971e-05,2]
[347981736,1736260237139,-500.0,9.971e-05,2]
[347981738,1736260237148,-500.0,9.971e-05,2]
[347981740,1736260237158,-500.0,9.971e-05,2]
[347981743,1736260237167,-500.0,9.971e-05,2]
[347981745,1736260237177,-500.0,9.971e-05,2]
[347981747,1736260237186,-622.99,9.971e-05,2]
[347981749,1736260237196,-500.0,9.971e-05,2]
[347981751,1736260237205,-500.0,9.971e-05,2]
[347981753,1736260237214,-500.0,9.971e-05,2]
[347981755,1736260237224,-500.0,9.971e-05,2]
[347981757,1736260237233,-500.0,9.971e-05,2]
[347981759,1736260237243,-500.0,9.971e-05,2]
[347981761,1736260237252,-500.0,9.971e-05,2]
[347981763,1736260237262,-500.0,9.971e-05,2]
[347981765,1736260237271,-500.0,9.971e-05,2]
[347981767,1736260237281,-500.0,9.971e-05,2]
[347981768,1736260237290,-500.0,9.971e-05,2]
[347981771,1736260237300,-500.0,9.971e-05,2]
[347981773,1736260237315,-500.0,9.971e-05,2]
[347981775,1736260237324,-500.0,9.971e-05,2]
[347981777,1736260237333,-511.8,9.971e-05,2]
[347981779,1736260237342,-500.0,9.971e-05,2]
[347981781,1736260237352,-500.0,9.971e-05,2]
[347981783,1736260237361,-500.0,9.971e-05,2]
[347981785,1736260237371,-670.58,9.971e-05,2]
[347981787,1736260237380,-500.0,9.971e-05,2]
[347981789,1736260237390,-500.0,9.971e-05,2]
[347981791,1736260237400,-500.0,9.971e-05,2]
[347981793,1736260237410,-500.0,9.971e-05,2]
[347981795,1736260237419,-500.0,9.971e-05,2]
[347981797,1736260237429,-500.0,9.971e-05,2]
[347981799,1736260237439,-591.66,9.971e-05,2]
[347981801,1736260237448,-500.0,9.971e-05,2]
[347981803,1736260237457,-500.0,9.971e-05,2]
[347981805,1736260237467,-500.0,9.971e-05,2]
[347981807,1736260237477,-500.0,9.971e-05,2]
[347981809,1736260237486,-500.0,9.971e-05,2]
[347981811,1736260237495,-500.0,9.971e-05,2]
[347981813,1736260237504,-500.0,9.971e-05,2]
[347981815,1736260237514,-150.9834171,9.971e-05,2]
[347981817,1736260237523,-548.76,9.971e-05,2]
[347981819,1736260237532,-500.0,9.971e-05,2]
[347981821,1736260237542,-500.0,9.971e-05,2]
[347981823,1736260237551,-314.53818646,9.971e-05,2]
[347981825,1736260237567,-565.93239175,9.971e-05,2]
[347981827,1736260237580,-500.0,9.971e-05,2]
[347981829,1736260237590,-500.0,9.971e-05,2]
[347981831,1736260237600,-500.0,9.971e-05,2]
[347981833,1736260237611,-500.0,9.971e-05,2]
[347981835,1736260237620,-500.0,9.971e-05,2]
[347981837,1736260237630,-500.0,9.971e-05,2]
[347981839,1736260237641,-500.0,9.971e-05,2]
[347981841,1736260237651,-500.0,9.971e-05,2]
[347981843,1736260237660,-500.0,9.971e-05,2]
[347981845,1736260237669,-500.0,9.971e-05,2]
[347981846,1736260237680,-500.0,9.971e-05,2]
[347981847,1736260237689,-500.0,9.971e-05,2]
[347981848,1736260237700,-500.0,9.971e-05,2]
[347981849,1736260237710,-500.0,9.971e-05,2]
[347981850,1736260237720,-500.0,9.971e-05,2]
[347981851,1736260237730,-791.86,9.971e-05,2]
[347981852,1736260237739,-500.0,9.971e-05,2]
[347981853,1736260237751,-500.0,9.971e-05,2]
[347981854,1736260237762,-500.0,9.971e-05,2]
[347981856,1736260237771,-500.0,9.971e-05,2]
[347981858,1736260237780,-500.0,9.971e-05,2]
[347981860,1736260237790,-500.0,9.971e-05,2]
[347981862,1736260237802,-500.0,9.971e-05,2]
[347981864,1736260237815,-500.0,9.971e-05,2]
[347981866,1736260237824,-500.0,9.971e-05,2]
[347981868,1736260237834,-500.0,9.971e-05,2]
[347981870,1736260237844,-658.64,9.971e-05,2]
[347981872,1736260237854,-500.0,9.971e-05,2]
[347981874,1736260237863,-500.0,9.971e-05,2]
[347981876,1736260237873,-500.0,9.971e-05,2]
[347981879,1736260237883,-500.0,9.971e-05,2]
[347981881,1736260237893,-500.0,9.971e-05,2]
[347981884,1736260237903,-500.0,9.971e-05,2]
[347981888,1736260237912,-500.0,9.971e-05,2]
[347981891,1736260237923,-529.7476651,9.971e-05,2]
[347981893,1736260237932,-500.0,9.971e-05,2]
[347981897,1736260237942,-500.0,9.971e-05,2]
[347981899,1736260237951,-518.22,9.971e-05,2]
[347981901,1736260237960,-500.0,9.971e-05,2]
[347981903,1736260237969,-500.0,9.971e-05,2]
[347981905,1736260237978,-500.0,9.971e-05,2]
[347981907,1736260237988,-500.0,9.971e-05,2]
[347981909,1736260237997,-500.0,9.971e-05,2]
[347981911,1736260238008,-500.0,9.971e-05,2]
[347981914,1736260238018,-500.0,9.971e-05,2]
[347981916,1736260238028,-500.0,9.971e-05,2]
[347981918,1736260238037,-500.0,9.971e-05,2]
[347981919,1736260238047,-500.0,9.971e-05,2]
[347981922,1736260238060,-500.0,9.971e-05,2]
[347981923,1736260238071,-483.55216879,9.971e-05,2]
[347981926,1736260238081,-500.0,9.971e-05,2]
[347981928,1736260238091,-500.0,9.971e-05,2]
[347981930,1736260238101,-500.0,9.971e-05,2]
[347981931,1736260238110,-617.52,9.971e-05,2]
[347981933,1736260238120,-500.0,9.971e-05,2]
[347981935,1736260238129,-500.0,9.971e-05,2]
[347981937,1736260238139,-500.0,9.971e-05,2]
[347981939,1736260238149,-500.0,9.971e-05,2]
[347981941,1736260238159,-500.0,9.971e-05,2]
[347981943,1736260238169,-500.0,9.971e-05,2]
[347981946,1736260238179,-500.0,9.971e-05,2]
[347981948,1736260238189,-500.0,9.971e-05,2]
[347981950,1736260238198,-500.0,9.971e-05,2]
[347981952,1736260238209,-500.0,9.971e-05,2]
[347981953,1736260238218,-500.0,9.971e-05,2]
[347981956,1736260238227,-500.0,9.971e-05,2]
[347981958,1736260238237,-500.0,9.971e-05,2]
[347981959,1736260238247,-635.34,9.971e-05,2]
[347981962,1736260238257,-500.0,9.971e-05,2]
[347981964,1736260238266,-500.0,9.971e-05,2]
[347981966,1736260238276,-500.0,9.971e-05,2]
[347981968,1736260238286,-500.0,9.971e-05,2]
[347981970,1736260238295,-500.0,9.971e-05,2]
[347981972,1736260238308,-500.0,9.971e-05,2]
[347981974,1736260238318,-520.06,9.971e-05,2]
[347981976,1736260238328,-500.0,9.971e-05,2]
[347981978,1736260238338,-500.0,9.971e-05,2]
[347981980,1736260238348,-500.0,9.971e-05,2]
[347981982,1736260238357,-304.80497339,9.971e-05,2]
[347981984,1736260238367,-500.0,9.971e-05,2]
[347981986,1736260238376,-500.0,9.971e-05,2]
[347981988,1736260238386,-500.0,9.971e-05,2]
[347981990,1736260238396,-654.6,9.971e-05,2]
[347981992,1736260238406,-500.0,9.971e-05,2]
[347981994,1736260238415,-500.0,9.971e-05,2]
[347981996,1736260238425,-500.0,9.971e-05,2]
[347981999,1736260238434,-500.0,9.971e-05,2]
[347982001,1736260238444,-500.0,9.971e-05,2]
[347982003,1736260238454,-500.0,9.971e-05,2]
[347982005,1736260238463,-500.0,9.971e-05,2]
[347982007,1736260238473,-500.0,9.971e-05,2]
[347982010,1736260238483,-1104.68,9.971e-05,2]
[347982013,1736260238493,-500.0,9.971e-05,2]
[347982016,1736260238502,-500.0,9.971e-05,2]
[347982018,1736260238513,-744.02,9.971e-05,2]
[347982020,1736260238523,-500.0,9.971e-05,2]
[347982022,1736260238533,-500.0,9.971e-05,2]
[347982024,1736260238542,-500.0,9.971e-05,2]
[347982026,1736260238553,-500.0,9.971e-05,2]
[347982030,1736260238566,-500.0,9.971e-05,2]
[347982033,1736260238575,-562.68,9.971e-05,2]
[347982036,1736260238586,-500.0,9.971e-05,2]
[347982038,1736260238596,-500.0,9.971e-05,2]
[347982041,1736260238607,-500.0,9.971e-05,2]
[347982044,1736260238618,-500.0,9.971e-05,2]
[347982046,1736260238628,-500.0,9.971e-05,2]
[347982048,1736260238638,-500.0,9.971e-05,2]
[347982050,1736260238647,-500.0,9.971e-05,2]
[347982052,1736260238657,-461.46699695,9.971e-05,2]
[347982054,1736260238667,-1524.58,9.971e-05,2]
[347982063,1736260238742,-500.0,9.971e-05,2]
[347982065,1736260238756,-711.78,9.971e-05,2]
[347982067,1736260238766,-500.0,9.971e-05,2]
[347982069,1736260238775,-500.0,9.971e-05,2]
[347982071,1736260238785,-500.0,9.971e-05,2]
[347982073,1736260238794,-500.0,9.971e-05,2]
[347982075,1736260238803,-500.0,9.971e-05,2]
[347982077,1736260238815,-505.58,9.971e-05,2]
[347982079,1736260238824,-500.0,9.971e-05,2]
[347982081,1736260238833,-500.0,9.971e-05,2]
[347982083,1736260238843,-500.0,9.971e-05,2]
[347982085,1736260238852,-1265.25,9.971e-05,2]
[347982087,1736260238862,-895.36,9.971e-05,2]
[347982089,1736260238871,-500.0,9.971e-05,2]
[347982091,1736260238880,-503.61817683,9.971e-05,2]
[347982093,1736260238889,-500.0,9.971e-05,2]
[347982095,1736260238899,-699.58,9.971e-05,2]
[347982097,1736260238908,-500.0,9.971e-05,2]
[347982099,1736260238918,-500.0,9.971e-05,2]
[347982101,1736260238927,-500.0,9.971e-05,2]
[347982103,1736260238937,-500.0,9.971e-05,2]
[347982105,1736260238946,-500.0,9.971e-05,2]
[347982106,1736260238955,-150.0,9.971e-05,2]
[347982107,1736260238964,-500.0,9.971e-05,2]
[347982108,1736260238973,-500.0,9.971e-05,2]
[347982110,1736260238982,-2484.5,9.971e-05,2]
[347982112,1736260238991,-500.0,9.971e-05,2]
[347982114,1736260239001,-673.87,9.971e-05,2]
[347982116,1736260239010,-2234.04,9.971e-05,2]
[347982118,1736260239020,-2140.96,9.971e-05,2]
[347982120,1736260239029,-500.0,9.971e-05,2]
[347982122,1736260239039,-500.0,9.971e-05,2]
[347982124,1736260239049,-894.24,9.971e-05,2]
[347982126,1736260239060,-500.0,9.971e-05,2]
[347982128,1736260239070,-513.3,9.971e-05,2]
[347982130,1736260239079,-514.55600248,9.971e-05,2]
[347982132,1736260239088,-500.0,9.971e-05,2]
[347982134,1736260239098,-500.0,9.971e-05,2]
[347982136,1736260239107,-501.44,9.971e-05,2]
[347982138,1736260239117,-1156.24,9.971e-05,2]
[347982140,1736260239126,-1123.76,9.971e-05,2]
[347982142,1736260239135,-500.0,9.971e-05,2]
[347982144,1736260239144,-1849.47,9.971e-05,2]
[347982146,1736260239154,-500.0,9.971e-05,2]
[347982148,1736260239163,-500.0,9.971e-05,2]
[347982150,1736260239172,-500.0,9.971e-05,2]
[347982152,1736260239182,-1210.21,9.971e-05,2]
[347982154,1736260239191,-500.0,9.971e-05,2]
[347982155,1736260239200,-2024.07,9.971e-05,2]
[347982157,1736260239208,-500.0,9.971e-05,2]
[347982159,1736260239218,-779.08,9.971e-05,2]
[347982161,1736260239227,-500.0,9.971e-05,2]
[347982163,1736260239236,-500.0,9.971e-05,2]
[347982165,1736260239245,-522.07,9.971e-05,2]
[347982167,1736260239255,-557.43,9.971e-05,2]
[347982170,1736260239265,-716.88,9.971e-05,2]
[347982172,1736260239275,-500.0,9.971e-05,2]
[347982174,1736260239285,-500.0,9.971e-05,2]
[347982176,1736260239295,-500.0,9.971e-05,2]
[347982178,1736260239306,-500.0,9.971e-05,2]
[347982179,1736260239318,-500.0,9.971e-05,2]
[347982182,1736260239328,-521.79,9.971e-05,2]
[347982183,1736260239336,-500.0,9.971e-05,2]
[347982185,1736260239346,-500.0,9.971e-05,2]
[347982188,1736260239357,-500.0,9.971e-05,2]
[347982190,1736260239366,-500.0,9.971e-05,2]
[347982192,1736260239380,-1470.46,9.971e-05,2]
[347982194,1736260239389,-1932.19,9.971e-05,2]
[347982196,1736260239398,-500.0,9.971e-05,2]
[347982198,1736260239407,-864.44,9.971e-05,2]
[347982200,1736260239416,-500.0,9.971e-05,2]
[347982202,1736260239426,-1855.77,9.971e-05,2]
[347982204,1736260239436,-500.0,9.971e-05,2]
[347982206,1736260239446,-500.0,9.971e-05,2]
[347982208,1736260239455,-1460.2,9.971e-05,2]
[347982210,1736260239464,-500.0,9.971e-05,2]
[347982212,1736260239473,-5836.79,9.971e-05,2]
[347982214,1736260239483,-800.93,9.971e-05,2]
[347982216,1736260239493,-2459.57,9.971e-05,2]
[347982218,1736260239503,-3676.73,9.971e-05,2]
[347982220,1736260239512,-500.0,9.971e-05,2]
[347982222,1736260239522,-500.0,9.971e-05,2]
[347982224,1736260239532,-1462.52,9.972e-05,2]
[347982225,1736260239541,-1782.12,9.972e-05,2]
[347982226,1736260239550,-500.0,9.972e-05,2]
[347982227,1736260239562,-697.84,9.972e-05,2]
[347982228,1736260239571,-2814.93,9.972e-05,2]
[347982229,1736260239581,-903.42,9.972e-05,2]
[347982230,1736260239591,-1157.73,9.972e-05,2]
[347982231,1736260239602,-854.3,9.972e-05,2]
[347982232,1736260239611,-584.19,9.972e-05,2]
[347982233,1736260239620,-1445.91,9.972e-05,2]
[347982234,1736260239630,-829.39,9.972e-05,2]
[347982236,1736260239639,-2440.47,9.972e-05,2]
[347982238,1736260239649,-2432.97,9.972e-05,2]
[347982239,1736260239658,-2973.67,9.972e-05,2]
[347982241,1736260239668,-1731.98,9.972e-05,2]
[347982243,1736260239678,-1908.14,9.972e-05,2]
[347982245,1736260239688,-4706.55,9.972e-05,2]
[347982247,1736260239697,-11608.08,9.972e-05,2]
[347982249,1736260239707,-2758.22,9.972e-05,2]
[347982251,1736260239717,-1090.35,9.972e-05,2]
[347982253,1736260239727,-693.7,9.973e-05,2]
[347982256,1736260239737,-2128.29,9.973e-05,2]
[347982258,1736260239747,-500.0,9.973e-05,2]
[347982259,1736260239760,-640.48,9.973e-05,2]
[347982262,1736260239770,-1232.08,9.973e-05,2]
[347982265,1736260239779,-759.79,9.973e-05,2]
[347982266,1736260239789,-1884.29,9.973e-05,2]
[347982268,1736260239798,-500.0,9.973e-05,2]
[347982271,1736260239811,-1065.09,9.973e-05,2]
[347982272,1736260239821,-1308.74,9.973e-05,2]
[347982274,1736260239832,-774.49,9.973e-05,2]
[347982276,1736260239843,-2822.7,9.973e-05,2]
[347982279,1736260239852,-2256.26,9.973e-05,2]
[347982280,1736260239862,-150.0,9.982e-05,2]
[347982282,1736260239871,-150.0,9.993e-05,2]
[347982285,1736260239881,-118468.01748859,9.999e-05,2]
[347982286,1736260239890,-150.0,0.0001,2]
[347982288,1736260239900,-2800.0,0.0001,3]
[347982292,1736260239910,-85674.87653064,0.0001,2]
[347982295,1736260239919,-156.97740135,0.0001,2]
[347982297,1736260239929,-156.97740133,0.0001,2]
[347982299,1736260239938,-156.97740133,0.0001,2]
[347982301,1736260239947,-156.97740133,0.0001,2]
[347982303,1736260239957,-156.97740133,0.0001,2]
[347982305,1736260239967,-150.0,0.00010017,2]
[347982308,1736260239976,-150.0,0.00010018,2]
[347982310,1736260239986,-150.0,0.00010035,2]
[347982312,1736260239996,-500.0,0.0001004,2]
[347982313,1736260240006,-836.3,0.0001004,2]
[347982315,1736260240015,-500.0,0.0001004,2]
[347982317,1736260240025,-500.0,0.0001004,2]
[347982320,1736260240034,-500.0,0.0001004,2]
[347982322,1736260240044,-500.0,0.0001004,2]
[347982323,1736260240056,-500.0,0.0001004,2]
[347982325,1736260240066,-500.0,0.0001004,2]
[347982328,1736260240076,-500.0,0.0001004,2]
[347982330,1736260240085,-500.0,0.0001004,2]
[347982331,1736260240094,-500.0,0.0001004,2]
[347982334,1736260240104,-500.0,0.0001004,2]
[347982336,1736260240114,-500.0,0.0001004,2]
[347982338,1736260240123,-500.0,0.0001004,2]
[347982340,1736260240133,-500.0,0.0001004,2]
[347982342,1736260240142,-500.0,0.0001004,2]
[347982344,1736260240152,-500.0,0.0001004,2]
[347982346,1736260240161,-500.0,0.0001004,2]
[347982348,1736260240170,-500.0,0.0001004,2]
[347982350,1736260240180,-500.0,0.0001004,2]
[347982352,1736260240190,-524.45,0.0001004,2]
[347982354,1736260240199,-610.94938262,0.0001004,2]
[347982356,1736260240209,-500.0,0.0001004,2]
[347982358,1736260240218,-500.0,0.0001004,2]
[347982360,1736260240228,-500.0,0.0001004,2]
[347982362,1736260240237,-500.0,0.0001004,2]
[347982364,1736260240247,-500.0,0.0001004,2]
[347982366,1736260240256,-500.0,0.0001004,2]
[347982368,1736260240265,-500.0,0.0001004,2]
[347982370,1736260240274,-646.84,0.0001004,2]
[347982372,1736260240283,-500.0,0.0001004,2]
[347982374,1736260240293,-648.84278583,0.0001004,2]
[347982376,1736260240302,-500.0,0.0001004,2]
[347982378,1736260240314,-500.0,0.0001004,2]
[347982380,1736260240324,-500.0,0.0001004,2]
[347982382,1736260240335,-500.0,0.0001004,2]
[347982384,1736260240344,-500.57443966,0.0001004,2]
[347982386,1736260240354,-500.0,0.0001004,2]
[347982388,1736260240363,-500.0,0.0001004,2]
[347982390,1736260240373,-500.0,0.0001004,2]
[347982392,1736260240382,-500.0,0.0001004,2]
[347982394,1736260240392,-500.0,0.0001004,2]
[347982395,1736260240401,-500.0,0.0001004,2]
[347982397,1736260240410,-500.0,0.0001004,2]
[347982400,1736260240421,-500.0,0.0001004,2]
[347982402,1736260240431,-500.0,0.0001004,2]
[347982404,1736260240441,-820.61,0.0001004,2]
[347982406,1736260240450,-500.0,0.0001004,2]
[347982408,1736260240459,-500.0,0.0001004,2]
[347982410,1736260240468,-500.0,0.0001004,2]
[347982412,1736260240478,-500.0,0.0001004,2]
[347982413,1736260240487,-500.0,0.0001004,2]
[347982415,1736260240496,-500.0,0.0001004,2]
[347982417,1736260240506,-500.0,0.0001004,2]
[347982419,1736260240516,-500.0,0.0001004,2]
[347982421,1736260240525,-500.0,0.0001004,2]
[347982423,1736260240535,-500.0,0.0001004,2]
[347982425,1736260240544,-500.0,0.0001004,2]
[347982427,1736260240554,-500.0,0.0001004,2]
[347982429,1736260240566,-500.0,0.0001004,2]
[347982431,1736260240576,-500.0,0.0001004,2]
[347982433,1736260240587,-500.0,0.0001004,2]
[347982435,1736260240597,-500.0,0.0001004,2]
[347982437,1736260240608,-500.0,0.0001004,2]
[347982439,1736260240617,-500.0,0.0001004,2]
[347982441,1736260240627,-500.0,0.0001004,2]
[347982443,1736260240638,-500.0,0.0001004,2]
[347982445,1736260240648,-230.06196655,0.0001004,2]
[347982447,1736260240657,-500.0,0.0001004,2]
[347982449,1736260240667,-500.0,0.0001004,2]
[347982451,1736260240676,-500.0,0.0001004,2]
[347982453,1736260240685,-500.0,0.0001004,2]
[347982455,1736260240695,-500.0,0.0001004,2]
[347982457,1736260240704,-650.16,0.0001004,2]
[347982459,1736260240713,-500.0,0.0001004,2]
[347982461,1736260240722,-500.0,0.0001004,2]
[347982463,1736260240732,-500.0,0.0001004,2]
[347982465,1736260240741,-500.0,0.0001004,2]
[347982467,1736260240754,-500.0,0.0001004,2]
[347982469,1736260240763,-500.0,0.0001004,2]
[347982471,1736260240773,-500.0,0.0001004,2]
[347982473,1736260240782,-500.0,0.0001004,2]